[Event "*** Titled Tuesday Blitz"]
[Site "Chess.com"]
[Date "2019.07.02"]
[Round "3"]
[White "novocane"]
[Black "Karina_Ivanova"]
[Result "1/2-1/2"]
[WhiteElo "2246"]
[BlackElo "2182"]
[TimeControl "180+2"]
[EndTime "13:39:29 PDT"]
[Termination "Game drawn by repetition"]

1. d4 {[%clk 0:03:01.8]} 1... Nf6 {[%clk 0:02:58.9]} 2. c4 {[%clk 0:03:02.8]}
2... e6 {[%clk 0:02:54.2]} 3. Nc3 {[%clk 0:03:03.7]} 3... Bb4 {[%clk 0:02:47.9]}
4. e3 {[%clk 0:03:04.9]} 4... c5 {[%clk 0:02:41.8]} 5. Ne2 {[%clk 0:03:05.2]}
5... cxd4 {[%clk 0:02:39.3]} 6. exd4 {[%clk 0:03:06.2]} 6... d5 {[%clk
0:02:38.1]} 7. a3 {[%clk 0:03:05.4]} 7... Be7 {[%clk 0:02:38.1]} 8. b3 {[%clk
0:02:56.8]} 8... O-O {[%clk 0:02:37.8]} 9. Ng3 {[%clk 0:02:51]} 9... b6 {[%clk
0:02:37.8]} 10. Be2 {[%clk 0:02:50.1]} 10... Bb7 {[%clk 0:02:37.1]} 11. O-O
{[%clk 0:02:50.9]} 11... Nbd7 {[%clk 0:02:38]} 12. Be3 {[%clk 0:02:49.9]} 12...
Rc8 {[%clk 0:02:37.3]} 13. Qd2 {[%clk 0:02:49.6]} 13... dxc4 {[%clk 0:02:35.7]}
14. bxc4 {[%clk 0:02:50.2]} 14... Ba6 {[%clk 0:02:33.6]} 15. Nb5 {[%clk
0:02:48.5]} 15... Bxb5 {[%clk 0:02:27.3]} 16. cxb5 {[%clk 0:02:49.1]} 16... Nd5
{[%clk 0:02:27.4]} 17. a4 {[%clk 0:02:38.9]} 17... N7f6 {[%clk 0:02:23.5]} 18.
Bf3 {[%clk 0:02:30.4]} 18... Qd7 {[%clk 0:02:22.2]} 19. Rfc1 {[%clk 0:02:24.1]}
19... Rxc1+ {[%clk 0:02:20.9]} 20. Rxc1 {[%clk 0:02:23.8]} 20... Rc8 {[%clk
0:02:21.5]} 21. h3 {[%clk 0:02:23.5]} 21... h6 {[%clk 0:02:11.4]} 22. Ne4 {[%clk
0:02:18.2]} 22... Nxe4 {[%clk 0:02:03.9]} 23. Bxe4 {[%clk 0:02:17.3]} 23... Bb4
{[%clk 0:02:00.4]} 24. Qd1 {[%clk 0:02:04.2]} 24... Nxe3 {[%clk 0:01:58.2]} 25.
fxe3 {[%clk 0:01:53.4]} 25... Rxc1 {[%clk 0:01:56.3]} 26. Qxc1 {[%clk
0:01:55.3]} 26... g6 {[%clk 0:01:39.4]} 27. Qc6 {[%clk 0:01:20.4]} 27... Qxc6
{[%clk 0:01:27.8]} 28. bxc6 {[%clk 0:01:20.9]} 28... Bd6 {[%clk 0:01:27.9]} 29.
Bd3 {[%clk 0:01:09.3]} 29... f5 {[%clk 0:01:28.2]} 30. g4 {[%clk 0:01:03.4]}
30... Kf7 {[%clk 0:01:28.3]} 31. Kf2 {[%clk 0:01:04.6]} 31... Ke7 {[%clk
0:01:27.1]} 32. Kf3 {[%clk 0:01:04]} 32... Kd8 {[%clk 0:01:26.9]} 33. gxf5
{[%clk 0:00:58.2]} 33... gxf5 {[%clk 0:01:27.6]} 34. e4 {[%clk 0:00:52.5]} 34...
fxe4+ {[%clk 0:01:28.3]} 35. Bxe4 {[%clk 0:00:48.5]} 35... Kc7 {[%clk
0:01:28.7]} 36. Ke3 {[%clk 0:00:20.7]} 36... a6 {[%clk 0:01:26.3]} 37. Kd3
{[%clk 0:00:20.3]} 37... b5 {[%clk 0:01:27]} 38. axb5 {[%clk 0:00:21.1]} 38...
axb5 {[%clk 0:01:27.8]} 39. d5 {[%clk 0:00:21.4]} 39... exd5 {[%clk 0:01:28]}
40. Bxd5 {[%clk 0:00:22.7]} 40... Kb6 {[%clk 0:01:25]} 41. Bf3 {[%clk
0:00:20.5]} 41... Kc5 {[%clk 0:01:25.2]} 42. Kc3 {[%clk 0:00:19.9]} 42... Be5+
{[%clk 0:01:26]} 43. Kb3 {[%clk 0:00:20.3]} 43... Bd6 {[%clk 0:01:22.8]} 44. Be4
{[%clk 0:00:20.1]} 44... Be5 {[%clk 0:01:23.5]} 45. Bf3 {[%clk 0:00:21.2]} 45...
Bd6 {[%clk 0:01:24.2]} 46. Be4 {[%clk 0:00:22.4]} 46... Be5 {[%clk 0:01:25.2]}
47. Bf3 {[%clk 0:00:23.8]} 1/2-1/2

[Event "*** Titled Tuesday Blitz"]
[Site "Chess.com"]
[Date "2019.07.02"]
[Round "3"]
[White "VovenRogel"]
[Black "Oleksandr_Bortnyk"]
[Result "0-1"]
[WhiteElo "2680"]
[BlackElo "2942"]
[TimeControl "180+2"]
[EndTime "13:39:30 PDT"]
[Termination "Oleksandr_Bortnyk won by resignation"]

1. d4 {[%clk 0:03:01.9]} 1... Nf6 {[%clk 0:02:23.7]} 2. c4 {[%clk 0:03:01.9]}
2... b6 {[%clk 0:02:21.4]} 3. Nf3 {[%clk 0:03:03.8]} 3... Bb7 {[%clk 0:02:17.9]}
4. g3 {[%clk 0:03:05.1]} 4... g6 {[%clk 0:02:10.9]} 5. Bg2 {[%clk 0:03:05.5]}
5... Bg7 {[%clk 0:02:10]} 6. O-O {[%clk 0:03:06.9]} 6... O-O {[%clk 0:02:06.7]}
7. Nc3 {[%clk 0:03:00.4]} 7... Ne4 {[%clk 0:02:04.9]} 8. Bd2 {[%clk 0:03:01.5]}
8... Re8 {[%clk 0:02:02.5]} 9. Qc2 {[%clk 0:02:56.7]} 9... Nxd2 {[%clk
0:02:01.1]} 10. Qxd2 {[%clk 0:02:58.6]} 10... d6 {[%clk 0:02:00.8]} 11. e4
{[%clk 0:02:54.4]} 11... e5 {[%clk 0:01:49.8]} 12. d5 {[%clk 0:02:53]} 12... Nd7
{[%clk 0:01:42.3]} 13. h4 {[%clk 0:02:52.7]} 13... Nf6 {[%clk 0:01:40.4]} 14.
Ne1 {[%clk 0:02:49.7]} 14... Bc8 {[%clk 0:01:38.1]} 15. Nd3 {[%clk 0:02:48.3]}
15... a5 {[%clk 0:01:38.4]} 16. b3 {[%clk 0:02:46.7]} 16... Bd7 {[%clk 0:01:36]}
17. Rae1 {[%clk 0:02:40.2]} 17... Qc8 {[%clk 0:01:34.4]} 18. f3 {[%clk 0:02:30]}
18... Nh5 {[%clk 0:01:28.6]} 19. Kh2 {[%clk 0:02:30.1]} 19... h6 {[%clk
0:01:24.7]} 20. Nf2 {[%clk 0:02:24.4]} 20... f5 {[%clk 0:01:17.5]} 21. Bh3
{[%clk 0:02:16.4]} 21... f4 {[%clk 0:01:17]} 22. Bxd7 {[%clk 0:01:45.2]} 22...
fxg3+ {[%clk 0:01:16.3]} 23. Kg2 {[%clk 0:01:45.3]} 23... Qxd7 {[%clk
0:01:17.5]} 24. Nd3 {[%clk 0:01:43.9]} 24... Rf8 {[%clk 0:01:15.4]} 25. Ne2
{[%clk 0:01:44.7]} 25... a4 {[%clk 0:00:56.2]} 26. b4 {[%clk 0:01:43.9]} 26...
b5 {[%clk 0:00:32.7]} 27. c5 {[%clk 0:01:38]} 27... Qe7 {[%clk 0:00:34]} 28. Rh1
{[%clk 0:01:36.6]} 28... Nf4+ {[%clk 0:00:22.3]} 29. Nexf4 {[%clk 0:01:34.2]}
29... exf4 {[%clk 0:00:24.2]} 30. h5 {[%clk 0:01:34.7]} 30... g5 {[%clk
0:00:23.3]} 31. e5 {[%clk 0:01:32.1]} 31... dxe5 {[%clk 0:00:23.6]} 32. Qc2
{[%clk 0:01:23.2]} 32... Rad8 {[%clk 0:00:22.1]} 33. Nxe5 {[%clk 0:01:23.6]}
33... Bxe5 {[%clk 0:00:19.1]} 34. Qg6+ {[%clk 0:01:23.7]} 34... Qg7 {[%clk
0:00:20.4]} 35. Rxe5 {[%clk 0:01:23.8]} 35... Qxg6 {[%clk 0:00:18.8]} 36. hxg6
{[%clk 0:01:25.7]} 36... Kg7 {[%clk 0:00:20.6]} 37. c6 {[%clk 0:01:09.4]} 37...
Kxg6 {[%clk 0:00:20.5]} 38. Rc1 {[%clk 0:01:04.8]} 38... Rf5 {[%clk 0:00:18]}
39. Re6+ {[%clk 0:01:04]} 39... Rf6 {[%clk 0:00:18.3]} 40. Re7 {[%clk
0:01:02.6]} 40... Rxd5 {[%clk 0:00:15.7]} 41. Rc2 {[%clk 0:01:02.7]} 41... Rfd6
{[%clk 0:00:15.2]} 0-1

[Event "*** Titled Tuesday Blitz"]
[Site "Chess.com"]
[Date "2019.07.02"]
[Round "3"]
[White "wnstop"]
[Black "stoleriu"]
[Result "1-0"]
[WhiteElo "2666"]
[BlackElo "2533"]
[TimeControl "180+2"]
[EndTime "13:39:31 PDT"]
[Termination "wnstop won by resignation"]

1. d4 {[%clk 0:03:01.9]} 1... e6 {[%clk 0:03:00.2]} 2. Nf3 {[%clk 0:03:02.2]}
2... Nf6 {[%clk 0:03:01.1]} 3. Bf4 {[%clk 0:03:02.5]} 3... b6 {[%clk 0:03:01.9]}
4. Nbd2 {[%clk 0:03:03]} 4... Bb7 {[%clk 0:03:03.3]} 5. e3 {[%clk 0:03:04.3]}
5... d6 {[%clk 0:03:04.1]} 6. Bd3 {[%clk 0:03:04.7]} 6... Nbd7 {[%clk
0:03:05.6]} 7. h3 {[%clk 0:03:05.5]} 7... Qe7 {[%clk 0:03:07.2]} 8. c3 {[%clk
0:03:02]} 8... e5 {[%clk 0:03:07.5]} 9. Bg5 {[%clk 0:03:01.7]} 9... e4 {[%clk
0:03:07.6]} 10. Bxf6 {[%clk 0:02:45.7]} 10... Nxf6 {[%clk 0:03:03.8]} 11. Qa4+
{[%clk 0:02:46.9]} 11... Qd7 {[%clk 0:02:45.3]} 12. Qxd7+ {[%clk 0:02:36]} 12...
Kxd7 {[%clk 0:02:47.2]} 13. Bb5+ {[%clk 0:02:24.3]} 13... c6 {[%clk 0:02:47.2]}
14. Be2 {[%clk 0:02:24.2]} 14... exf3 {[%clk 0:02:47.9]} 15. Nxf3 {[%clk
0:02:26.1]} 15... Kc7 {[%clk 0:02:42.3]} 16. Ng5 {[%clk 0:02:20.6]} 16... h6
{[%clk 0:02:32.5]} 17. Nxf7 {[%clk 0:02:18.8]} 17... Rg8 {[%clk 0:02:32.5]} 18.
Bc4 {[%clk 0:01:59.5]} 18... Nd5 {[%clk 0:01:40.3]} 19. e4 {[%clk 0:01:51]}
19... Re8 {[%clk 0:01:39.5]} 20. e5 {[%clk 0:01:47]} 20... Re7 {[%clk
0:01:28.1]} 21. Nxd6 {[%clk 0:01:41.1]} 21... g5 {[%clk 0:01:08.9]} 22. O-O
{[%clk 0:01:31.6]} 22... Re6 {[%clk 0:01:07.2]} 23. Ne4 {[%clk 0:01:29.2]} 23...
Bg7 {[%clk 0:01:01.9]} 24. Ng3 {[%clk 0:01:16.8]} 24... Rf8 {[%clk 0:00:55.1]}
25. Nh5 {[%clk 0:01:11.3]} 25... Bh8 {[%clk 0:00:56.1]} 26. f4 {[%clk
0:01:04.9]} 26... gxf4 {[%clk 0:00:16]} 27. Bxd5 {[%clk 0:01:05.6]} 27... cxd5
{[%clk 0:00:17.9]} 28. Nxf4 {[%clk 0:01:07.1]} 28... Rxf4 {[%clk 0:00:14.4]} 29.
Rxf4 {[%clk 0:01:09]} 29... Re8 {[%clk 0:00:15.9]} 30. Rf7+ {[%clk 0:01:09.6]}
30... Kb8 {[%clk 0:00:16.9]} 31. Raf1 {[%clk 0:01:11.1]} 31... Bc8 {[%clk
0:00:18]} 32. Rh7 {[%clk 0:01:09.8]} 32... Be6 {[%clk 0:00:19.2]} 33. Rxh6
{[%clk 0:01:11.1]} 33... Bg7 {[%clk 0:00:20.5]} 34. Rg6 {[%clk 0:01:07.6]} 34...
Bh8 {[%clk 0:00:20.1]} 35. Rf4 {[%clk 0:01:09]} 35... b5 {[%clk 0:00:17.2]} 36.
Rh6 {[%clk 0:01:09.5]} 36... Bg7 {[%clk 0:00:17.9]} 37. Rh7 {[%clk 0:01:10.8]}
37... Rg8 {[%clk 0:00:14.6]} 38. g4 {[%clk 0:01:05.6]} 38... Bf8 {[%clk
0:00:13]} 39. Rf6 {[%clk 0:01:04.9]} 39... Bc8 {[%clk 0:00:14]} 40. Rhf7 {[%clk
0:01:03.5]} 40... Bg7 {[%clk 0:00:05.5]} 41. Rg6 {[%clk 0:01:04.7]} 41... Rf8
{[%clk 0:00:07.2]} 42. Rgxg7 {[%clk 0:01:05.3]} 1-0

[Event "*** Titled Tuesday Blitz"]
[Site "Chess.com"]
[Date "2019.07.02"]
[Round "3"]
[White "Perecke"]
[Black "zurzan"]
[Result "1-0"]
[WhiteElo "2047"]
[BlackElo "1925"]
[TimeControl "180+2"]
[EndTime "13:39:33 PDT"]
[Termination "Perecke won by checkmate"]

1. e4 {[%clk 0:03:01.9]} 1... d6 {[%clk 0:03:01.9]} 2. d4 {[%clk 0:02:57.6]}
2... Nf6 {[%clk 0:03:03.8]} 3. Nc3 {[%clk 0:02:48.7]} 3... Nbd7 {[%clk
0:03:03.4]} 4. Nf3 {[%clk 0:02:48.1]} 4... e5 {[%clk 0:03:03]} 5. Bc4 {[%clk
0:02:48.7]} 5... Be7 {[%clk 0:03:00.5]} 6. O-O {[%clk 0:02:49.6]} 6... h6 {[%clk
0:02:59.5]} 7. h3 {[%clk 0:02:49.7]} 7... c6 {[%clk 0:02:59]} 8. a4 {[%clk
0:02:49.8]} 8... a5 {[%clk 0:02:58.2]} 9. Re1 {[%clk 0:02:50.2]} 9... Qc7 {[%clk
0:02:57.5]} 10. Be3 {[%clk 0:02:47.7]} 10... g5 {[%clk 0:02:56.5]} 11. Nh2
{[%clk 0:02:38.5]} 11... Nf8 {[%clk 0:02:34.7]} 12. Qf3 {[%clk 0:02:13.5]} 12...
Rh7 {[%clk 0:02:20.6]} 13. Ng4 {[%clk 0:02:03.1]} 13... Nxg4 {[%clk 0:02:18.4]}
14. hxg4 {[%clk 0:02:05]} 14... Be6 {[%clk 0:02:09.6]} 15. d5 {[%clk 0:01:56.4]}
15... Bd7 {[%clk 0:02:07]} 16. dxc6 {[%clk 0:01:54.1]} 16... bxc6 {[%clk
0:02:06.3]} 17. Rad1 {[%clk 0:01:37.8]} 17... Ne6 {[%clk 0:02:05]} 18. Bb3
{[%clk 0:01:18.2]} 18... O-O-O {[%clk 0:01:59.7]} 19. Qe2 {[%clk 0:01:18]} 19...
Qb7 {[%clk 0:01:55.3]} 20. Bc4 {[%clk 0:01:17.9]} 20... Kb8 {[%clk 0:01:52.5]}
21. Rb1 {[%clk 0:01:14.8]} 21... Nd4 {[%clk 0:01:46.4]} 22. Bxd4 {[%clk
0:01:11.6]} 22... exd4 {[%clk 0:01:45.8]} 23. Na2 {[%clk 0:00:56.9]} 23... Be6
{[%clk 0:01:28.8]} 24. b4 {[%clk 0:00:41.8]} 24... Qa7 {[%clk 0:01:00.8]} 25.
bxa5+ {[%clk 0:00:35.6]} 25... Ka8 {[%clk 0:01:01.1]} 26. Bxe6 {[%clk
0:00:30.2]} 26... fxe6 {[%clk 0:01:00.7]} 27. Qc4 {[%clk 0:00:30.7]} 27... Rc8
{[%clk 0:00:38.9]} 28. Nb4 {[%clk 0:00:21.1]} 28... d5 {[%clk 0:00:34]} 29. exd5
{[%clk 0:00:21.8]} 29... exd5 {[%clk 0:00:32]} 30. Nxd5 {[%clk 0:00:22.6]} 30...
Bd6 {[%clk 0:00:20.9]} 31. Nb6+ {[%clk 0:00:22]} 31... Kb8 {[%clk 0:00:16.9]}
32. Nxc8+ {[%clk 0:00:22.9]} 32... Kxc8 {[%clk 0:00:17]} 33. Qxc6+ {[%clk
0:00:24]} 33... Qc7 {[%clk 0:00:14.6]} 34. Re8# {[%clk 0:00:25.3]} 1-0

[Event "*** Titled Tuesday Blitz"]
[Site "Chess.com"]
[Date "2019.07.02"]
[Round "3"]
[White "Azatnew"]
[Black "WarlordX"]
[Result "0-1"]
[WhiteElo "2579"]
[BlackElo "2388"]
[TimeControl "180+2"]
[EndTime "13:39:34 PDT"]
[Termination "WarlordX won by resignation"]

1. Nf3 {[%clk 0:03:01.9]} 1... d5 {[%clk 0:02:59.8]} 2. g3 {[%clk 0:03:03.8]}
2... Nf6 {[%clk 0:03:00.9]} 3. Bg2 {[%clk 0:03:05.7]} 3... g6 {[%clk 0:03:02.4]}
4. O-O {[%clk 0:03:07.2]} 4... Bg7 {[%clk 0:03:04]} 5. d4 {[%clk 0:03:08.8]}
5... O-O {[%clk 0:03:05.7]} 6. c4 {[%clk 0:03:10.4]} 6... c6 {[%clk 0:03:06.9]}
7. Nc3 {[%clk 0:03:10.8]} 7... Nbd7 {[%clk 0:03:07.9]} 8. b3 {[%clk 0:03:11.3]}
8... Re8 {[%clk 0:03:08.5]} 9. Bb2 {[%clk 0:03:12]} 9... Nb6 {[%clk 0:03:08.5]}
10. cxd5 {[%clk 0:03:06.9]} 10... cxd5 {[%clk 0:03:00.9]} 11. Rc1 {[%clk
0:03:07.9]} 11... Bf5 {[%clk 0:03:01.3]} 12. Ba3 {[%clk 0:03:04.9]} 12... Rc8
{[%clk 0:02:58.8]} 13. Qd2 {[%clk 0:03:05.1]} 13... Ne4 {[%clk 0:02:52.5]} 14.
Qe3 {[%clk 0:03:01.1]} 14... h6 {[%clk 0:02:40.7]} 15. Nh4 {[%clk 0:02:53.8]}
15... Nxc3 {[%clk 0:02:35.9]} 16. Rxc3 {[%clk 0:02:55.7]} 16... Rxc3 {[%clk
0:02:17.8]} 17. Qxc3 {[%clk 0:02:57.6]} 17... Bd7 {[%clk 0:02:19.2]} 18. Nf3
{[%clk 0:02:58]} 18... Bf5 {[%clk 0:02:19.3]} 19. Rc1 {[%clk 0:02:54.7]} 19...
Nd7 {[%clk 0:02:10.9]} 20. Qc7 {[%clk 0:02:37.4]} 20... Bf6 {[%clk 0:01:27.1]}
21. Qxd8 {[%clk 0:02:28.3]} 21... Rxd8 {[%clk 0:01:29]} 22. Rc7 {[%clk
0:02:29.5]} 22... Bb1 {[%clk 0:01:20.8]} 23. Nd2 {[%clk 0:02:22.3]} 23... Bf5
{[%clk 0:01:12.3]} 24. e3 {[%clk 0:02:17]} 24... e5 {[%clk 0:01:04.3]} 25. Bxd5
{[%clk 0:02:13.7]} 25... exd4 {[%clk 0:01:04.5]} 26. exd4 {[%clk 0:02:15.6]}
26... Bxd4 {[%clk 0:01:05.5]} 27. Nc4 {[%clk 0:02:14.8]} 27... Ne5 {[%clk
0:00:44.3]} 28. Nd6 {[%clk 0:02:03.8]} 28... Rd7 {[%clk 0:00:38.6]} 29. Rxd7
{[%clk 0:02:00]} 29... Bxd7 {[%clk 0:00:37.5]} 30. Bxb7 {[%clk 0:02:00.3]} 30...
Ng4 {[%clk 0:00:20.5]} 31. Ne4 {[%clk 0:01:57.2]} 31... Bf5 {[%clk 0:00:20.8]}
32. Kg2 {[%clk 0:01:44.5]} 32... Kg7 {[%clk 0:00:20.6]} 33. Bc5 {[%clk
0:01:40.9]} 33... Bxe4+ {[%clk 0:00:19.7]} 34. Bxe4 {[%clk 0:01:39.4]} 34...
Bxc5 {[%clk 0:00:21.6]} 35. f3 {[%clk 0:01:37.2]} 35... Ne3+ {[%clk 0:00:22.9]}
36. Kf2 {[%clk 0:01:37.7]} 36... Nd1+ {[%clk 0:00:24.2]} 37. Ke1 {[%clk
0:01:37.9]} 37... Nc3 {[%clk 0:00:25.8]} 38. Bc6 {[%clk 0:01:38.8]} 38... Nxa2
{[%clk 0:00:26.9]} 39. Kd2 {[%clk 0:01:40.1]} 39... Nb4 {[%clk 0:00:28.7]} 40.
Bd7 {[%clk 0:01:40.5]} 40... a5 {[%clk 0:00:30]} 41. h3 {[%clk 0:01:41.3]} 41...
Nd5 {[%clk 0:00:31.5]} 42. g4 {[%clk 0:01:42.6]} 42... Nf4 {[%clk 0:00:32]} 43.
Kc3 {[%clk 0:01:43.4]} 43... Nxh3 {[%clk 0:00:32.4]} 44. Kc4 {[%clk 0:01:44.2]}
44... Bb4 {[%clk 0:00:34]} 45. Kd3 {[%clk 0:01:45.6]} 45... g5 {[%clk 0:00:35]}
46. Ke4 {[%clk 0:01:45.6]} 46... Kf6 {[%clk 0:00:36.5]} 47. Be8 {[%clk
0:01:46.4]} 47... Nf4 {[%clk 0:00:38.4]} 48. Bb5 {[%clk 0:01:47.3]} 48... Ng6
{[%clk 0:00:39.6]} 49. Bc6 {[%clk 0:01:48]} 49... Ne5 {[%clk 0:00:41.5]} 50. Bb5
{[%clk 0:01:49.2]} 50... Ng6 {[%clk 0:00:40.2]} 51. Bc6 {[%clk 0:01:49.9]} 51...
Nf8 {[%clk 0:00:41.5]} 52. Bb5 {[%clk 0:01:50.7]} 52... Ne6 {[%clk 0:00:43.4]}
53. Bc4 {[%clk 0:01:50.4]} 53... Nc5+ {[%clk 0:00:44.6]} 54. Ke3 {[%clk
0:01:51.3]} 54... Kg6 {[%clk 0:00:44.4]} 55. Bd5 {[%clk 0:01:51.7]} 55... f5
{[%clk 0:00:43.8]} 56. Kf2 {[%clk 0:01:51.7]} 56... Kf6 {[%clk 0:00:44]} 57. Bc4
{[%clk 0:01:51.9]} 57... Ke5 {[%clk 0:00:45.4]} 58. Bf7 {[%clk 0:01:50.5]} 58...
Kf4 {[%clk 0:00:46.1]} 0-1

[Event "*** Titled Tuesday Blitz"]
[Site "Chess.com"]
[Date "2019.07.02"]
[Round "3"]
[White "ENEASZ"]
[Black "diskeleven"]
[Result "0-1"]
[WhiteElo "2494"]
[BlackElo "2387"]
[TimeControl "180+2"]
[EndTime "13:39:34 PDT"]
[Termination "diskeleven won by resignation"]

1. e4 {[%clk 0:02:51.2]} 1... c5 {[%clk 0:02:53.5]} 2. c3 {[%clk 0:02:51.7]}
2... e6 {[%clk 0:02:55.4]} 3. d4 {[%clk 0:02:52.5]} 3... d5 {[%clk 0:02:56]} 4.
exd5 {[%clk 0:02:54.4]} 4... exd5 {[%clk 0:02:56.5]} 5. Nf3 {[%clk 0:02:56.3]}
5... a6 {[%clk 0:02:56.3]} 6. Bd3 {[%clk 0:02:54.7]} 6... c4 {[%clk 0:02:46.6]}
7. Bc2 {[%clk 0:02:54.8]} 7... Bd6 {[%clk 0:02:47.7]} 8. O-O {[%clk 0:02:54.9]}
8... Ne7 {[%clk 0:02:48.8]} 9. Nbd2 {[%clk 0:02:55.3]} 9... O-O {[%clk
0:02:49.2]} 10. Re1 {[%clk 0:02:56.6]} 10... Nbc6 {[%clk 0:02:46.3]} 11. Nf1
{[%clk 0:02:57.3]} 11... Bf5 {[%clk 0:02:46.5]} 12. Ng3 {[%clk 0:02:57.1]} 12...
Bxc2 {[%clk 0:02:46.7]} 13. Qxc2 {[%clk 0:02:59]} 13... Qd7 {[%clk 0:02:46.3]}
14. Ng5 {[%clk 0:02:56.9]} 14... g6 {[%clk 0:02:40.2]} 15. Bd2 {[%clk
0:02:53.4]} 15... b5 {[%clk 0:02:40.7]} 16. Re2 {[%clk 0:02:54.2]} 16... a5
{[%clk 0:02:41.2]} 17. Rae1 {[%clk 0:02:54.8]} 17... b4 {[%clk 0:02:42.1]} 18.
Bc1 {[%clk 0:02:55.9]} 18... a4 {[%clk 0:02:41.6]} 19. Nh5 {[%clk 0:02:24.5]}
19... f6 {[%clk 0:01:49.2]} 20. Ne6 {[%clk 0:02:18.1]} 20... Rf7 {[%clk
0:01:50.3]} 21. Nhf4 {[%clk 0:02:13.3]} 21... a3 {[%clk 0:01:48.8]} 22. bxa3
{[%clk 0:02:00.7]} 22... bxc3 {[%clk 0:01:49.2]} 23. Nxg6 {[%clk 0:02:01.2]}
23... hxg6 {[%clk 0:01:38.8]} 24. Qxc3 {[%clk 0:02:00.7]} 24... Nf5 {[%clk
0:01:29]} 25. g4 {[%clk 0:01:48.2]} 25... Nh4 {[%clk 0:01:21]} 26. f4 {[%clk
0:01:49]} 26... Re7 {[%clk 0:01:03.7]} 27. Qh3 {[%clk 0:01:43.1]} 27... Rae8
{[%clk 0:01:04.4]} 28. f5 {[%clk 0:01:39.4]} 28... g5 {[%clk 0:01:05.6]} 29. Qf1
{[%clk 0:01:09.4]} 29... Nxd4 {[%clk 0:01:01.3]} 30. Nxd4 {[%clk 0:01:08.6]}
30... Bc5 {[%clk 0:01:02.4]} 31. Bb2 {[%clk 0:00:43.6]} 31... Re4 {[%clk
0:00:27.7]} 32. Qf2 {[%clk 0:00:40.5]} 32... Qa7 {[%clk 0:00:25.6]} 33. Rxe4
{[%clk 0:00:37.9]} 33... Rxe4 {[%clk 0:00:26]} 34. Rxe4 {[%clk 0:00:38.6]} 34...
dxe4 {[%clk 0:00:27.2]} 35. Kh1 {[%clk 0:00:39.2]} 35... Nf3 {[%clk 0:00:27.5]}
36. Qe2 {[%clk 0:00:36.4]} 36... Bxd4 {[%clk 0:00:22.8]} 37. Qxe4 {[%clk
0:00:37.7]} 37... Bxb2 {[%clk 0:00:23.9]} 38. Qe8+ {[%clk 0:00:38]} 38... Kg7
{[%clk 0:00:23.7]} 39. Qg6+ {[%clk 0:00:39.1]} 39... Kf8 {[%clk 0:00:25]} 40.
Qxf6+ {[%clk 0:00:40.5]} 40... Bxf6 {[%clk 0:00:25.4]} 0-1

[Event "*** Titled Tuesday Blitz"]
[Site "Chess.com"]
[Date "2019.07.02"]
[Round "3"]
[White "witcher8"]
[Black "jacky72"]
[Result "1-0"]
[WhiteElo "2433"]
[BlackElo "2614"]
[TimeControl "180+2"]
[EndTime "13:39:37 PDT"]
[Termination "witcher8 won by resignation"]

1. e4 {[%clk 0:03:01.9]} 1... e5 {[%clk 0:02:59.2]} 2. Nf3 {[%clk 0:03:02.4]}
2... Nc6 {[%clk 0:03:00.6]} 3. Bc4 {[%clk 0:03:03.2]} 3... Bc5 {[%clk 0:03:01]}
4. c3 {[%clk 0:03:02.4]} 4... Nf6 {[%clk 0:03:01.6]} 5. d4 {[%clk 0:03:02.6]}
5... exd4 {[%clk 0:03:02.7]} 6. cxd4 {[%clk 0:03:01.7]} 6... Bb4+ {[%clk
0:03:03.7]} 7. Nc3 {[%clk 0:03:03]} 7... Nxe4 {[%clk 0:03:02.3]} 8. O-O {[%clk
0:03:04.2]} 8... Bxc3 {[%clk 0:03:03]} 9. d5 {[%clk 0:03:05]} 9... Ne5 {[%clk
0:03:04.5]} 10. bxc3 {[%clk 0:03:04.5]} 10... Nxc4 {[%clk 0:03:04.6]} 11. Qd4
{[%clk 0:02:57.2]} 11... O-O {[%clk 0:03:04.3]} 12. Qxc4 {[%clk 0:02:53.9]}
12... Nd6 {[%clk 0:03:04.5]} 13. Qf4 {[%clk 0:02:53.5]} 13... b6 {[%clk
0:03:04.2]} 14. Re1 {[%clk 0:02:41.7]} 14... Ba6 {[%clk 0:03:04.7]} 15. Ba3
{[%clk 0:02:33]} 15... Re8 {[%clk 0:02:48.3]} 16. Bxd6 {[%clk 0:02:22.1]} 16...
cxd6 {[%clk 0:02:50.2]} 17. Nd4 {[%clk 0:02:10.7]} 17... Bb7 {[%clk 0:02:41.9]}
18. c4 {[%clk 0:02:07.6]} 18... Rc8 {[%clk 0:02:38.5]} 19. Nf5 {[%clk
0:02:07.8]} 19... Qf6 {[%clk 0:02:35.5]} 20. g3 {[%clk 0:02:04.6]} 20... Ba6
{[%clk 0:01:55.6]} 21. Nxd6 {[%clk 0:01:43.1]} 21... Rxe1+ {[%clk 0:01:56.3]}
22. Rxe1 {[%clk 0:01:43.3]} 22... Qxf4 {[%clk 0:01:57.2]} 23. gxf4 {[%clk
0:01:45.2]} 23... Rd8 {[%clk 0:01:53.7]} 24. a4 {[%clk 0:01:39.4]} 24... Kf8
{[%clk 0:01:53.9]} 25. Kg2 {[%clk 0:01:27.3]} 25... g6 {[%clk 0:01:54.5]} 26.
Kg3 {[%clk 0:01:23.1]} 26... Rb8 {[%clk 0:01:44.8]} 27. f5 {[%clk 0:01:11.5]}
27... gxf5 {[%clk 0:01:44]} 28. Kf4 {[%clk 0:01:12.7]} 28... Bb7 {[%clk
0:01:39.4]} 29. Kxf5 {[%clk 0:01:10.1]} 29... Ba8 {[%clk 0:01:38.2]} 30. Kf6
{[%clk 0:01:08.5]} 30... a6 {[%clk 0:01:39.4]} 31. Re7 {[%clk 0:01:03.3]} 31...
b5 {[%clk 0:01:41.3]} 32. Rxf7+ {[%clk 0:00:58.5]} 32... Kg8 {[%clk 0:01:41.3]}
33. Rg7+ {[%clk 0:00:55.7]} 33... Kf8 {[%clk 0:01:41.1]} 34. Rxh7 {[%clk
0:00:56.2]} 34... Kg8 {[%clk 0:01:42.5]} 35. Rg7+ {[%clk 0:00:54.9]} 35... Kf8
{[%clk 0:01:43.9]} 36. axb5 {[%clk 0:00:53.7]} 36... axb5 {[%clk 0:01:44.7]} 37.
Rf7+ {[%clk 0:00:27]} 37... Kg8 {[%clk 0:01:45.4]} 38. Nf5 {[%clk 0:00:26.9]}
38... Rb6+ {[%clk 0:01:32.2]} 39. d6 {[%clk 0:00:27.7]} 39... Be4 {[%clk
0:01:34.1]} 40. Nh6+ {[%clk 0:00:21.3]} 40... Kh8 {[%clk 0:01:35.2]} 41. Rxd7
{[%clk 0:00:22.3]} 41... bxc4 {[%clk 0:01:28.8]} 42. Nf7+ {[%clk 0:00:19.6]}
42... Kh7 {[%clk 0:01:28.8]} 43. Ng5+ {[%clk 0:00:18.9]} 43... Kh6 {[%clk
0:01:28.6]} 44. Nxe4 {[%clk 0:00:16.4]} 44... Rb3 {[%clk 0:01:29]} 45. Rc7
{[%clk 0:00:15.3]} 45... Rf3+ {[%clk 0:01:28]} 46. Ke5 {[%clk 0:00:15.7]} 46...
c3 {[%clk 0:01:29.5]} 47. Rxc3 {[%clk 0:00:16.4]} 47... Rxc3 {[%clk 0:01:29.2]}
48. Nxc3 {[%clk 0:00:17]} 1-0